{"text_format":"1","workbook":"xlsx","n_sheets":5,"sheets":["Information READ ME FIRST","32 Items","Graphs 32 Items","20 Items","Graphs 20 Items"],"not_rendered":{"charts":14,"images":0,"macros":0,"external_links":0,"defined_names":0,"comments":0,"pivot_tables":0},"unopened":[],"bounds":{"document_bytes":16777216,"sheet_cells":100000,"rows_first":2000,"rows_last":500,"rows_between":2000,"halvings":0,"cell_chars":16384,"cell_head_chars":4096},"cells_cut":0,"cells_raw":0,"read":"whole","date_system":"1900"}

{"sheet":"Information READ ME FIRST","index":0,"n_rows":23,"n_cols":1,"rows_kept":23,"cut":false,"hidden":false,"merged":[]}
["The following spreadsheets help you score and present your results of the Negative Effects Questionnaire (NEQ). "]
["Choose which version (32 or 20 items) you are using below and start entering the respondents' scores, i.e., per item."]
["Each item has its own color in the spreadsheets just to make it easier for you to enter your data, and each column specifies what to enter."]
["The results for each item are presented below the bold line as frequencies (i.e., how many respondend to this item) and the mean negative impact it had for the respondents when attributed to treatment."]
["Please makes sure that zeroes are entered correct under the columns for negative impact of each item – they should reflect no negative impact, not missing values."]
["A summary of the results can be obtained at the far right of the spreadsheet, while graphs are provided on a separate spreadsheet."]
["Graphs of the items are composed of three separate figures as Excel unfortunately cannot handle all of the items at once."]
["Overall results are also presented as total frequencies, means, and standard deviations for the full measure and for each of the factors (for negative effects related to treatment)."]
["When it comes to negative effects related to other circumstances, a shorter summary of the results is also provided, i.e., overall frequency."]
[]
["Click here for the 20 items version:"]
["20 Items'!A1"]
[]
["Click here for the 32 items version:"]
["32 Items'!A1"]
[]
["www.neqscale.com"]
[]
["There is no consensus in the scientific community on how to present results on negative effects as definitions and measures vary."]
["Generally, providing frequencies of those negative effects in your study that have occurred the most is recommended, as well as their average negative impact, e.g., in a table."]
["The factors and overall results (e.g., total number of negative effects reported or mean negative impact) should be considered to be exploratory variables, as they are currently hard to interpret or compare to other studies."]
[]
["For questions, please email: alexander.rozental@psyk.uu.se or per.carlbring@psychology.su.se"]

{"sheet":"32 Items","index":1,"n_rows":6,"n_cols":182,"rows_kept":6,"cut":false,"hidden":false,"merged":[]}
["Patient ID",null,"Item 1: I had more problems with my sleep","Item 1: How negatively it affected me (0-4)","Item 1: Probably caused by (1 = Treatment; 0 = Other)","Item 1: Negative impact from treatment","Item 1: Negative impact from other circumstances","Item 2: I felt like I was under more stress","Item 2: How negatively it affected me (0-4)","Item 2: Probably caused by (1 = Treatment; 0 = Other)","Item 2: Negative impact from  treatment","Item 2: Negative impact from other circumstances","Item 3: I experienced more anxiety","Item 3: How negatively it affected me (0-4)","Item 3: Probably caused by (1 = Treatment; 0 = Other)","Item 3: Negative impact from treatment","Item 3: Negative impact from other circumstances","Item 4: I felt more worried","Item 4: How negatively it affected me (0-4)","Item 4: Probably caused by (1 = Treatment; 0 = Other)","Item 4: Negative impact from treatment","Item 4: Negative impact from other circumstances","Item 5: I felt more dejected","Item 5: How negatively it affected me (0-4)","Item 5: Probably caused by (1 = Treatment; 0 = Other)","Item 5: Negative impact from treatment","Item 5: Negative impact from other circumstances","Item 6: I experienced more hopelessness","Item 6: How negatively it affected me (0-4)","Item 6: Probably caused by (1 = Treatment; 0 = Other)","Item 6: Negative impact from treatment","Item 6: Negative impact from other circumstances","Item 7: I experienced lower self-esteem","Item 7: How negatively it affected me (0-4)","Item 7: Probably caused by (1 = Treatment; 0 = Other)","Item 7: Negative impact from treatment","Item 7: Negative impact from other circumstances","Item 8: I lost faith in myself","Item 8: How negatively it affected me (0-4)","Item 8: Probably caused by (1 = Treatment; 0 = Other)","Item 8: Negative impact from treatment","Item 8: Negative impact from other circumstances","Item 9: I felt sadder","Item 9: How negatively it affected me (0-4)","Item 9: Probably caused by (1 = Treatment; 0 = Other)","Item 9: Negative impact from treatment","Item 9: Negative impact from other circumstances","Item 10: I felt less competent","Item 10: How negatively it affected me (0-4)","Item 10: Probably caused by (1 = Treatment; 0 = Other)","Item 10: Negative impact from treatment","Item 10: Negative impact from other circumstances","Item 11: I experienced more unpleasant feelings","Item 11: How negatively it affected me (0-4)","Item 11: Probably caused by (1 = Treatment; 0 = Other)","Item 11: Negative impact from treatment","Item 11: Negative impact from other circumstances","Item 12: I felt that the issue I was looking for help with\ngot worse","Item 12: How negatively it affected me (0-4)","Item 12: Probably caused by (1 = Treatment; 0 = Other)","Item 12: Negative impact from treatment","Item 12: Negative impact from other circumstances","Item 13: Unpleasant memories resurfaced","Item 13: How negatively it affected me (0-4)","Item 13: Probably caused by (1 = Treatment; 0 = Other)","Item 13: Negative impact from treatment","Item 13: Negative impact from other circumstances","Item 14: I became afraid that other people would find\nout about my treatment","Item 14: How negatively it affected me (0-4)","Item 14: Probably caused by (1 = Treatment; 0 = Other)","Item 14: Negative impact from treatment","Item 14: Negative impact from other circumstances","Item 15: I got thoughts that it would be better if I did not\nexist anymore and that I should take my own\nlife","Item 15: How negatively it affected me (0-4)","Item 15: Probably caused by (1 = Treatment; 0 = Other)","Item 15: Negative impact from treatment","Item 15: Negative impact from other circumstances","Item 16: I started feeling ashamed in front of other people because I was having treatment","Item 16: How negatively it affected me (0-4)","Item 16: Probably caused by (1 = Treatment; 0 = Other)","Item 16: Negative impact from treatment","Item 16: Negative impact from other circumstances","Item 17: I stopped thinking that things could get better","Item 17: How negatively it affected me (0-4)","Item 17: Probably caused by (1 = Treatment; 0 = Other)","Item 17: Negative impact from treatment","Item 17: Negative impact from other circumstances","Item 18: I started thinking that the issue I was seeking\nhelp for could not be made any better","Item 18: How negatively it affected me (0-4)","Item 18: Probably caused by (1 = Treatment; 0 = Other)","Item 18: Negative impact from treatment","Item 18: Negative impact from other circumstances","Item 19: I stopped thinking help was possible","Item 19: How negatively it affected me (0-4)","Item 19: Probably caused by (1 = Treatment; 0 = Other)","Item 19: Negative impact from treatment","Item 19: Negative impact from other circumstances","Item 20: I think that I have developed a dependency on\nmy treatment","Item 20: How negatively it affected me (0-4)","Item 20: Probably caused by (1 = Treatment; 0 = Other)","Item 20: Negative impact from treatment","Item 20: Negative impact from other circumstances","Item 21: I think that I have developed a dependency on\nmy therapist","Item 21: How negatively it affected me (0-4)","Item 21: Probably caused by (1 = Treatment; 0 = Other)","Item 21: Negative impact from treatment","Item 21: Negative impact from other circumstances","Item 22: I did not always understand my treatment","Item 22: How negatively it affected me (0-4)","Item 22: Probably caused by (1 = Treatment; 0 = Other)","Item 22: Negative impact from treatment","Item 22: Negative impact from other circumstances","Item 23: I did not always understand my therapist","Item 23: How negatively it affected me (0-4)","Item 23: Probably caused by (1 = Treatment; 0 = Other)","Item 23: Negative impact from treatment","Item 23: Negative impact from other circumstances","Item 24: I did not have confidence in my treatment","Item 24: How negatively it affected me (0-4)","Item 24: Probably caused by (1 = Treatment; 0 = Other)","Item 24: Negative impact from treatment","Item 24: Negative impact from other circumstances","Item 25: I did not have confidence in my therapist","Item 25: How negatively it affected me (0-4)","Item 25: Probably caused by (1 = Treatment; 0 = Other)","Item 25: Negative impact from treatment","Item 25: Negative impact from other circumstances","Item 26: I felt that the treatment did not produce any\nresults","Item 26: How negatively it affected me (0-4)","Item 26: Probably caused by (1 = Treatment; 0 = Other)","Item 26: Negative impact from treatment","Item 26: Negative impact from other circumstances","Item 27: I felt that my expectations for the treatment\nwere not fulfilled","Item 27: How negatively it affected me (0-4)","Item 27: Probably caused by (1 = Treatment; 0 = Other)","Item 27: Negative impact from treatment","Item 27: Negative impact from other circumstances","Item 28: I felt that my expectations for the therapist\nwere not fulfilled","Item 28: How negatively it affected me (0-4)","Item 28: Probably caused by (1 = Treatment; 0 = Other)","Item 28: Negative impact from treatment","Item 28: Negative impact from other circumstances","Item 29: I felt that the quality of the treatment was poor","Item 29: How negatively it affected me (0-4)","Item 29: Probably caused by (1 = Treatment; 0 = Other)","Item 29: Negative impact from treatment","Item 29: Negative impact from other circumstances","Item 30: I felt that the treatment did not suit me","Item 30: How negatively it affected me (0-4)","Item 30: Probably caused by (1 = Treatment; 0 = Other)","Item 30: Negative impact from treatment","Item 30: Negative impact from other circumstances","Item 31: I felt that I did not form a closer relationship\nwith my therapist","Item 31: How negatively it affected me (0-4)","Item 31: Probably caused by (1 = Treatment; 0 = Other)","Item 31: Negative impact from treatment","Item 31: Negative impact from other circumstances","Item 32: I felt that the treatment was not motivating","Item 32: How negatively it affected me (0-4)","Item 32: Probably caused by (1 = Treatment; 0 = Other)","Item 32: Negative impact from treatment","Item 32: Negative impact from other circumstances",null,null,"Frequency negative effects","Frequency negative effects from treatment","Frequency negative effects from other circumstances","Frequency Factor 1 (Symptoms) from treatment","Frequency Factor 2 (Quality) from treatment","Frequency Factor 3 (Dependency) from treatment","Frequency Factor 4 (Stigma) from treatment","Frequency Factor 5 (Hopelessness) from treatment","Frequency Factor 6 (Failure) from treatment",null,null,"Negative impact from treatment","Negative impact Factor 1 (Symptoms) from treatment","Negative impact Factor 2 (Quality) from treatment","Negative impact Factor 3 (Dependency) from treatment","Negative impact Factor 4 (Stigma) from treatment","Negative impact Factor 5 (Hopelessness) from treatment","Negative impact Factor 6 (Failure) from treatment"]
["Example_Patient_1",null,1,4,1,{"$f":"IF(AND(C2=1,E2=1),D2,)","v":4},{"$f":"IF(AND(C2=1,E2=0),D2,)","v":0},1,4,1,{"$f":"IF(AND(H2=1,J2=1),I2,)","v":4},{"$f":"IF(AND(H2=1,J2=0),I2,)","v":0},1,4,1,{"$f":"IF(AND(M2=1,O2=1),N2,)","v":4},{"$f":"IF(AND(M2=1,O2=0),N2,)","v":0},1,4,1,{"$f":"IF(AND(R2=1,T2=1),S2,)","v":4},{"$f":"IF(AND(R2=1,T2=0),S2,)","v":0},1,4,1,{"$f":"IF(AND(W2=1,Y2=1),X2,)","v":4},{"$f":"IF(AND(W2=1,Y2=0),X2,)","v":0},1,4,1,{"$f":"IF(AND(AB2=1,AD2=1),AC2,)","v":4},{"$f":"IF(AND(AB2=1,AD2=0),AC2,)","v":0},1,4,1,{"$f":"IF(AND(AG2=1,AI2=1),AH2,)","v":4},{"$f":"IF(AND(AG2=1,AI2=0),AH2,)","v":0},1,4,1,{"$f":"IF(AND(AL2=1,AN2=1),AM2,)","v":4},{"$f":"IF(AND(AL2=1,AN2=0),AM2,)","v":0},1,4,1,{"$f":"IF(AND(AQ2=1,AS2=1),AR2,)","v":4},{"$f":"IF(AND(AQ2=1,AS2=0),AR2,)","v":0},1,4,1,{"$f":"IF(AND(AV2=1,AX2=1),AW2,)","v":4},{"$f":"IF(AND(AV2=1,AX2=0),AW2,)","v":0},1,4,1,{"$f":"IF(AND(BA2=1,BC2=1),BB2,)","v":4},{"$f":"IF(AND(BA2=1,BC2=0),BB2,)","v":0},1,4,1,{"$f":"IF(AND(BF2=1,BH2=1),BG2,)","v":4},{"$f":"IF(AND(BF2=1,BH2=0),BG2,)","v":0},1,4,1,{"$f":"IF(AND(BK2=1,BM2=1),BL2,)","v":4},{"$f":"IF(AND(BK2=1,BM2=0),BL2,)","v":0},1,4,1,{"$f":"IF(AND(BP2=1,BR2=1),BQ2,)","v":4},{"$f":"IF(AND(BP2=1,BR2=0),BQ2,)","v":0},1,4,1,{"$f":"IF(AND(BU2=1,BW2=1),BV2,)","v":4},{"$f":"IF(AND(BU2=1,BW2=0),BV2,)","v":0},1,4,1,{"$f":"IF(AND(BZ2=1,CB2=1),CA2,)","v":4},{"$f":"IF(AND(BZ2=1,CB2=0),CA2,)","v":0},1,4,1,{"$f":"IF(AND(CE2=1,CG2=1),CF2,)","v":4},{"$f":"IF(AND(CE2=1,CG2=0),CF2,)","v":0},1,4,1,{"$f":"IF(AND(CJ2=1,CL2=1),CK2,)","v":4},{"$f":"IF(AND(CJ2=1,CL2=0),CK2,)","v":0},1,4,1,{"$f":"IF(AND(CO2=1,CQ2=1),CP2,)","v":4},{"$f":"IF(AND(CO2=1,CQ2=0),CP2,)","v":0},1,4,1,{"$f":"IF(AND(CT2=1,CV2=1),CU2,)","v":4},{"$f":"IF(AND(CT2=1,CV2=0),CU2,)","v":0},1,4,1,{"$f":"IF(AND(CY2=1,DA2=1),CZ2,)","v":4},{"$f":"IF(AND(CY2=1,DA2=0),CZ2,)","v":0},1,4,1,{"$f":"IF(AND(DD2=1,DF2=1),DE2,)","v":4},{"$f":"IF(AND(DD2=1,DF2=0),DE2,)","v":0},1,4,1,{"$f":"IF(AND(DI2=1,DK2=1),DJ2,)","v":4},{"$f":"IF(AND(DI2=1,DK2=0),DJ2,)","v":0},1,4,1,{"$f":"IF(AND(DN2=1,DP2=1),DO2,)","v":4},{"$f":"IF(AND(DN2=1,DP2=0),DO2,)","v":0},1,4,1,{"$f":"IF(AND(DS2=1,DU2=1),DT2,)","v":4},{"$f":"IF(AND(DS2=1,DU2=0),DT2,)","v":0},1,4,1,{"$f":"IF(AND(DX2=1,DZ2=1),DY2,)","v":4},{"$f":"IF(AND(DX2=1,DZ2=0),DY2,)","v":0},1,4,1,{"$f":"IF(AND(EC2=1,EE2=1),ED2,)","v":4},{"$f":"IF(AND(EC2=1,EE2=0),ED2,)","v":0},1,4,1,{"$f":"IF(AND(EH2=1,EJ2=1),EI2,)","v":4},{"$f":"IF(AND(EH2=1,EJ2=0),EI2,)","v":0},1,4,1,{"$f":"IF(AND(EM2=1,EO2=1),EN2,)","v":4},{"$f":"IF(AND(EM2=1,EO2=0),EN2,)","v":0},1,4,1,{"$f":"IF(AND(ER2=1,ET2=1),ES2,)","v":4},{"$f":"IF(AND(ER2=1,ET2=0),ES2,)","v":0},1,4,1,{"$f":"IF(AND(EW2=1,EY2=1),EX2,)","v":4},{"$f":"IF(AND(EW2=1,EY2=0),EX2,)","v":0},1,4,1,{"$f":"IF(AND(FB2=1,FD2=1),FC2,)","v":4},{"$f":"IF(AND(FB2=1,FD2=0),FC2,)","v":0},null,null,{"$f":"SUM(C2,H2,M2,R2,W2,AB2,AG2,AL2,AQ2,AV2,BA2,BF2,BK2,BP2,BU2,BZ2,CE2,CJ2,CO2,CT2,CY2,DD2,DI2,DN2,DS2,DX2,EC2,EH2,EM2,ER2,EW2,FB2)","v":32},{"$f":"SUM(E2,J2,O2,T2,Y2,AD2,AI2,AN2,AS2,AX2,BC2,BH2,BM2,BR2,BW2,CB2,CG2,CL2,CQ2,CV2,DA2,DF2,DK2,DP2,DU2,DZ2,EE2,EJ2,EO2,ET2,EY2,FD2)","v":32},{"$f":"FI2-FJ2","v":0},{"$f":"SUM(E2,J2,O2,T2,Y2,AS2,BC2,BH2,BM2,BW2)","v":10},{"$f":"SUM(DF2,DK2,DP2,DU2,DZ2,EE2,EJ2,EO2,ET2,EY2,FD2)","v":11},{"$f":"SUM(CV2,DA2)","v":2},{"$f":"SUM(BR2,CB2)","v":2},{"$f":"SUM(AD2,CG2,CL2,CQ2)","v":4},{"$f":"SUM(AI2,AN2,AX2)","v":3},null,null,{"$f":"SUM(F2,K2,P2,U2,Z2,AE2,AJ2,AO2,AT2,AY2,BD2,BI2,BN2,BS2,BX2,CC2,CH2,CM2,CR2,CW2,DB2,DG2,DL2,DQ2,DV2,EA2,EF2,EK2,EP2,EU2,EZ2,FE2)","v":128},{"$f":"SUM(F2,K2,P2,U2,Z2,AT2,BD2,BI2,BN2,BX2)","v":40},{"$f":"SUM(DG2,DL2,DQ2,DV2,EA2,EF2,EK2,EP2,EU2,EZ2,FE2)","v":44},{"$f":"SUM(CW2,DB2)","v":8},{"$f":"SUM(BS2,CC2)","v":8},{"$f":"SUM(AE2,CH2,CM2,CR2)","v":16},{"$f":"SUM(AJ2,AO2,AY2)","v":12}]
["Example_Patient_2",null,1,3,0,{"$f":"IF(AND(C3=1,E3=1),D3,)","v":0},{"$f":"IF(AND(C3=1,E3=0),D3,)","v":3},1,3,0,{"$f":"IF(AND(H3=1,J3=1),I3,)","v":0},{"$f":"IF(AND(H3=1,J3=0),I3,)","v":3},1,3,0,{"$f":"IF(AND(M3=1,O3=1),N3,)","v":0},{"$f":"IF(AND(M3=1,O3=0),N3,)","v":3},1,3,0,{"$f":"IF(AND(R3=1,T3=1),S3,)","v":0},{"$f":"IF(AND(R3=1,T3=0),S3,)","v":3},1,3,0,{"$f":"IF(AND(W3=1,Y3=1),X3,)","v":0},{"$f":"IF(AND(W3=1,Y3=0),X3,)","v":3},1,3,0,{"$f":"IF(AND(AB3=1,AD3=1),AC3,)","v":0},{"$f":"IF(AND(AB3=1,AD3=0),AC3,)","v":3},1,3,0,{"$f":"IF(AND(AG3=1,AI3=1),AH3,)","v":0},{"$f":"IF(AND(AG3=1,AI3=0),AH3,)","v":3},1,3,0,{"$f":"IF(AND(AL3=1,AN3=1),AM3,)","v":0},{"$f":"IF(AND(AL3=1,AN3=0),AM3,)","v":3},1,3,0,{"$f":"IF(AND(AQ3=1,AS3=1),AR3,)","v":0},{"$f":"IF(AND(AQ3=1,AS3=0),AR3,)","v":3},1,3,0,{"$f":"IF(AND(AV3=1,AX3=1),AW3,)","v":0},{"$f":"IF(AND(AV3=1,AX3=0),AW3,)","v":3},1,3,0,{"$f":"IF(AND(BA3=1,BC3=1),BB3,)","v":0},{"$f":"IF(AND(BA3=1,BC3=0),BB3,)","v":3},1,3,0,{"$f":"IF(AND(BF3=1,BH3=1),BG3,)","v":0},{"$f":"IF(AND(BF3=1,BH3=0),BG3,)","v":3},1,3,0,{"$f":"IF(AND(BK3=1,BM3=1),BL3,)","v":0},{"$f":"IF(AND(BK3=1,BM3=0),BL3,)","v":3},1,3,0,{"$f":"IF(AND(BP3=1,BR3=1),BQ3,)","v":0},{"$f":"IF(AND(BP3=1,BR3=0),BQ3,)","v":3},1,3,0,{"$f":"IF(AND(BU3=1,BW3=1),BV3,)","v":0},{"$f":"IF(AND(BU3=1,BW3=0),BV3,)","v":3},1,3,0,{"$f":"IF(AND(BZ3=1,CB3=1),CA3,)","v":0},{"$f":"IF(AND(BZ3=1,CB3=0),CA3,)","v":3},1,3,0,{"$f":"IF(AND(CE3=1,CG3=1),CF3,)","v":0},{"$f":"IF(AND(CE3=1,CG3=0),CF3,)","v":3},1,3,0,{"$f":"IF(AND(CJ3=1,CL3=1),CK3,)","v":0},{"$f":"IF(AND(CJ3=1,CL3=0),CK3,)","v":3},1,3,0,{"$f":"IF(AND(CO3=1,CQ3=1),CP3,)","v":0},{"$f":"IF(AND(CO3=1,CQ3=0),CP3,)","v":3},1,3,0,{"$f":"IF(AND(CT3=1,CV3=1),CU3,)","v":0},{"$f":"IF(AND(CT3=1,CV3=0),CU3,)","v":3},1,3,0,{"$f":"IF(AND(CY3=1,DA3=1),CZ3,)","v":0},{"$f":"IF(AND(CY3=1,DA3=0),CZ3,)","v":3},1,3,0,{"$f":"IF(AND(DD3=1,DF3=1),DE3,)","v":0},{"$f":"IF(AND(DD3=1,DF3=0),DE3,)","v":3},1,3,0,{"$f":"IF(AND(DI3=1,DK3=1),DJ3,)","v":0},{"$f":"IF(AND(DI3=1,DK3=0),DJ3,)","v":3},1,3,0,{"$f":"IF(AND(DN3=1,DP3=1),DO3,)","v":0},{"$f":"IF(AND(DN3=1,DP3=0),DO3,)","v":3},1,3,0,{"$f":"IF(AND(DS3=1,DU3=1),DT3,)","v":0},{"$f":"IF(AND(DS3=1,DU3=0),DT3,)","v":3},1,3,0,{"$f":"IF(AND(DX3=1,DZ3=1),DY3,)","v":0},{"$f":"IF(AND(DX3=1,DZ3=0),DY3,)","v":3},1,3,0,{"$f":"IF(AND(EC3=1,EE3=1),ED3,)","v":0},{"$f":"IF(AND(EC3=1,EE3=0),ED3,)","v":3},1,3,0,{"$f":"IF(AND(EH3=1,EJ3=1),EI3,)","v":0},{"$f":"IF(AND(EH3=1,EJ3=0),EI3,)","v":3},1,3,0,{"$f":"IF(AND(EM3=1,EO3=1),EN3,)","v":0},{"$f":"IF(AND(EM3=1,EO3=0),EN3,)","v":3},1,3,0,{"$f":"IF(AND(ER3=1,ET3=1),ES3,)","v":0},{"$f":"IF(AND(ER3=1,ET3=0),ES3,)","v":3},1,3,0,{"$f":"IF(AND(EW3=1,EY3=1),EX3,)","v":0},{"$f":"IF(AND(EW3=1,EY3=0),EX3,)","v":3},1,3,0,{"$f":"IF(AND(FB3=1,FD3=1),FC3,)","v":0},{"$f":"IF(AND(FB3=1,FD3=0),FC3,)","v":3},null,null,{"$f":"SUM(C3,H3,M3,R3,W3,AB3,AG3,AL3,AQ3,AV3,BA3,BF3,BK3,BP3,BU3,BZ3,CE3,CJ3,CO3,CT3,CY3,DD3,DI3,DN3,DS3,DX3,EC3,EH3,EM3,ER3,EW3,FB3)","v":32},{"$f":"SUM(E3,J3,O3,T3,Y3,AD3,AI3,AN3,AS3,AX3,BC3,BH3,BM3,BR3,BW3,CB3,CG3,CL3,CQ3,CV3,DA3,DF3,DK3,DP3,DU3,DZ3,EE3,EJ3,EO3,ET3,EY3,FD3)","v":0},{"$f":"FI3-FJ3","v":32},{"$f":"SUM(E3,J3,O3,T3,Y3,AS3,BC3,BH3,BM3,BW3)","v":0},{"$f":"SUM(DF3,DK3,DP3,DU3,DZ3,EE3,EJ3,EO3,ET3,EY3,FD3)","v":0},{"$f":"SUM(CV3,DA3)","v":0},{"$f":"SUM(BR3,CB3)","v":0},{"$f":"SUM(AD3,CG3,CL3,CQ3)","v":0},{"$f":"SUM(AI3,AN3,AX3)","v":0},null,null,{"$f":"SUM(F3,K3,P3,U3,Z3,AE3,AJ3,AO3,AT3,AY3,BD3,BI3,BN3,BS3,BX3,CC3,CH3,CM3,CR3,CW3,DB3,DG3,DL3,DQ3,DV3,EA3,EF3,EK3,EP3,EU3,EZ3,FE3)","v":0},{"$f":"SUM(F3,K3,P3,U3,Z3,AT3,BD3,BI3,BN3,BX3)","v":0},{"$f":"SUM(DG3,DL3,DQ3,DV3,EA3,EF3,EK3,EP3,EU3,EZ3,FE3)","v":0},{"$f":"SUM(CW3,DB3)","v":0},{"$f":"SUM(BS3,CC3)","v":0},{"$f":"SUM(AE3,CH3,CM3,CR3)","v":0},{"$f":"SUM(AJ3,AO3,AY3)","v":0}]
[null,null,{"$f":"SUM(C2:C3)","v":2},{"$f":"AVERAGE(D2:D3)","v":3.5},{"$f":"SUM(E2:E3)","v":1},{"$f":"AVERAGE(F2:F3)","v":2},{"$f":"AVERAGE(G2:G3)","v":1.5},{"$f":"SUM(H2:H3)","v":2},{"$f":"AVERAGE(I2:I3)","v":3.5},{"$f":"SUM(J2:J3)","v":1},{"$f":"AVERAGE(K2:K3)","v":2},{"$f":"AVERAGE(L2:L3)","v":1.5},{"$f":"SUM(M2:M3)","v":2},{"$f":"AVERAGE(N2:N3)","v":3.5},{"$f":"SUM(O2:O3)","v":1},{"$f":"AVERAGE(P2:P3)","v":2},{"$f":"AVERAGE(Q2:Q3)","v":1.5},{"$f":"SUM(R2:R3)","v":2},{"$f":"AVERAGE(S2:S3)","v":3.5},{"$f":"SUM(T2:T3)","v":1},{"$f":"AVERAGE(U2:U3)","v":2},{"$f":"AVERAGE(V2:V3)","v":1.5},{"$f":"SUM(W2:W3)","v":2},{"$f":"AVERAGE(X2:X3)","v":3.5},{"$f":"SUM(Y2:Y3)","v":1},{"$f":"AVERAGE(Z2:Z3)","v":2},{"$f":"AVERAGE(AA2:AA3)","v":1.5},{"$f":"SUM(AB2:AB3)","v":2},{"$f":"AVERAGE(AC2:AC3)","v":3.5},{"$f":"SUM(AD2:AD3)","v":1},{"$f":"AVERAGE(AE2:AE3)","v":2},{"$f":"AVERAGE(AF2:AF3)","v":1.5},{"$f":"SUM(AG2:AG3)","v":2},{"$f":"AVERAGE(AH2:AH3)","v":3.5},{"$f":"SUM(AI2:AI3)","v":1},{"$f":"AVERAGE(AJ2:AJ3)","v":2},{"$f":"AVERAGE(AK2:AK3)","v":1.5},{"$f":"SUM(AL2:AL3)","v":2},{"$f":"AVERAGE(AM2:AM3)","v":3.5},{"$f":"SUM(AN2:AN3)","v":1},{"$f":"AVERAGE(AO2:AO3)","v":2},{"$f":"AVERAGE(AP2:AP3)","v":1.5},{"$f":"SUM(AQ2:AQ3)","v":2},{"$f":"AVERAGE(AR2:AR3)","v":3.5},{"$f":"SUM(AS2:AS3)","v":1},{"$f":"AVERAGE(AT2:AT3)","v":2},{"$f":"AVERAGE(AU2:AU3)","v":1.5},{"$f":"SUM(AV2:AV3)","v":2},{"$f":"AVERAGE(AW2:AW3)","v":3.5},{"$f":"SUM(AX2:AX3)","v":1},{"$f":"AVERAGE(AY2:AY3)","v":2},{"$f":"AVERAGE(AZ2:AZ3)","v":1.5},{"$f":"SUM(BA2:BA3)","v":2},{"$f":"AVERAGE(BB2:BB3)","v":3.5},{"$f":"SUM(BC2:BC3)","v":1},{"$f":"AVERAGE(BD2:BD3)","v":2},{"$f":"AVERAGE(BE2:BE3)","v":1.5},{"$f":"SUM(BF2:BF3)","v":2},{"$f":"AVERAGE(BG2:BG3)","v":3.5},{"$f":"SUM(BH2:BH3)","v":1},{"$f":"AVERAGE(BI2:BI3)","v":2},{"$f":"AVERAGE(BJ2:BJ3)","v":1.5},{"$f":"SUM(BK2:BK3)","v":2},{"$f":"AVERAGE(BL2:BL3)","v":3.5},{"$f":"SUM(BM2:BM3)","v":1},{"$f":"AVERAGE(BN2:BN3)","v":2},{"$f":"AVERAGE(BO2:BO3)","v":1.5},{"$f":"SUM(BP2:BP3)","v":2},{"$f":"AVERAGE(BQ2:BQ3)","v":3.5},{"$f":"SUM(BR2:BR3)","v":1},{"$f":"AVERAGE(BS2:BS3)","v":2},{"$f":"AVERAGE(BT2:BT3)","v":1.5},{"$f":"SUM(BU2:BU3)","v":2},{"$f":"AVERAGE(BV2:BV3)","v":3.5},{"$f":"SUM(BW2:BW3)","v":1},{"$f":"AVERAGE(BX2:BX3)","v":2},{"$f":"AVERAGE(BY2:BY3)","v":1.5},{"$f":"SUM(BZ2:BZ3)","v":2},{"$f":"AVERAGE(CA2:CA3)","v":3.5},{"$f":"SUM(CB2:CB3)","v":1},{"$f":"AVERAGE(CC2:CC3)","v":2},{"$f":"AVERAGE(CD2:CD3)","v":1.5},{"$f":"SUM(CE2:CE3)","v":2},{"$f":"AVERAGE(CF2:CF3)","v":3.5},{"$f":"SUM(CG2:CG3)","v":1},{"$f":"AVERAGE(CH2:CH3)","v":2},{"$f":"AVERAGE(CI2:CI3)","v":1.5},{"$f":"SUM(CJ2:CJ3)","v":2},{"$f":"AVERAGE(CK2:CK3)","v":3.5},{"$f":"SUM(CL2:CL3)","v":1},{"$f":"AVERAGE(CM2:CM3)","v":2},{"$f":"AVERAGE(CN2:CN3)","v":1.5},{"$f":"SUM(CO2:CO3)","v":2},{"$f":"AVERAGE(CP2:CP3)","v":3.5},{"$f":"SUM(CQ2:CQ3)","v":1},{"$f":"AVERAGE(CR2:CR3)","v":2},{"$f":"AVERAGE(CS2:CS3)","v":1.5},{"$f":"SUM(CT2:CT3)","v":2},{"$f":"AVERAGE(CU2:CU3)","v":3.5},{"$f":"SUM(CV2:CV3)","v":1},{"$f":"AVERAGE(CW2:CW3)","v":2},{"$f":"AVERAGE(CX2:CX3)","v":1.5},{"$f":"SUM(CY2:CY3)","v":2},{"$f":"AVERAGE(CZ2:CZ3)","v":3.5},{"$f":"SUM(DA2:DA3)","v":1},{"$f":"AVERAGE(DB2:DB3)","v":2},{"$f":"AVERAGE(DC2:DC3)","v":1.5},{"$f":"SUM(DD2:DD3)","v":2},{"$f":"AVERAGE(DE2:DE3)","v":3.5},{"$f":"SUM(DF2:DF3)","v":1},{"$f":"AVERAGE(DG2:DG3)","v":2},{"$f":"AVERAGE(DH2:DH3)","v":1.5},{"$f":"SUM(DI2:DI3)","v":2},{"$f":"AVERAGE(DJ2:DJ3)","v":3.5},{"$f":"SUM(DK2:DK3)","v":1},{"$f":"AVERAGE(DL2:DL3)","v":2},{"$f":"AVERAGE(DM2:DM3)","v":1.5},{"$f":"SUM(DN2:DN3)","v":2},{"$f":"AVERAGE(DO2:DO3)","v":3.5},{"$f":"SUM(DP2:DP3)","v":1},{"$f":"AVERAGE(DQ2:DQ3)","v":2},{"$f":"AVERAGE(DR2:DR3)","v":1.5},{"$f":"SUM(DS2:DS3)","v":2},{"$f":"AVERAGE(DT2:DT3)","v":3.5},{"$f":"SUM(DU2:DU3)","v":1},{"$f":"AVERAGE(DV2:DV3)","v":2},{"$f":"AVERAGE(DW2:DW3)","v":1.5},{"$f":"SUM(DX2:DX3)","v":2},{"$f":"AVERAGE(DY2:DY3)","v":3.5},{"$f":"SUM(DZ2:DZ3)","v":1},{"$f":"AVERAGE(EA2:EA3)","v":2},{"$f":"AVERAGE(EB2:EB3)","v":1.5},{"$f":"SUM(EC2:EC3)","v":2},{"$f":"AVERAGE(ED2:ED3)","v":3.5},{"$f":"SUM(EE2:EE3)","v":1},{"$f":"AVERAGE(EF2:EF3)","v":2},{"$f":"AVERAGE(EG2:EG3)","v":1.5},{"$f":"SUM(EH2:EH3)","v":2},{"$f":"AVERAGE(EI2:EI3)","v":3.5},{"$f":"SUM(EJ2:EJ3)","v":1},{"$f":"AVERAGE(EK2:EK3)","v":2},{"$f":"AVERAGE(EL2:EL3)","v":1.5},{"$f":"SUM(EM2:EM3)","v":2},{"$f":"AVERAGE(EN2:EN3)","v":3.5},{"$f":"SUM(EO2:EO3)","v":1},{"$f":"AVERAGE(EP2:EP3)","v":2},{"$f":"AVERAGE(EQ2:EQ3)","v":1.5},{"$f":"SUM(ER2:ER3)","v":2},{"$f":"AVERAGE(ES2:ES3)","v":3.5},{"$f":"SUM(ET2:ET3)","v":1},{"$f":"AVERAGE(EU2:EU3)","v":2},{"$f":"AVERAGE(EV2:EV3)","v":1.5},{"$f":"SUM(EW2:EW3)","v":2},{"$f":"AVERAGE(EX2:EX3)","v":3.5},{"$f":"SUM(EY2:EY3)","v":1},{"$f":"AVERAGE(EZ2:EZ3)","v":2},{"$f":"AVERAGE(FA2:FA3)","v":1.5},{"$f":"SUM(FB2:FB3)","v":2},{"$f":"AVERAGE(FC2:FC3)","v":3.5},{"$f":"SUM(FD2:FD3)","v":1},{"$f":"AVERAGE(FE2:FE3)","v":2},{"$f":"AVERAGE(FF2:FF3)","v":1.5},null,"Sum",{"$f":"SUM(FI2:FI3)","v":64},32,32,10,11,2,2,4,3,null,"Mean",{"$f":"AVERAGE(FT2:FT3)","v":64},20,22,4,4,8,6]
[null,null,null,null,null,null,null,null,null,null,null,null,null,null,null,null,null,null,null,null,null,null,null,null,null,null,null,null,null,null,null,null,null,null,null,null,null,null,null,null,null,null,null,null,null,null,null,null,null,null,null,null,null,null,null,null,null,null,null,null,null,null,null,null,null,null,null,null,null,null,null,null,null,null,null,null,null,null,null,null,null,null,null,null,null,null,null,null,null,null,null,null,null,null,null,null,null,null,null,null,null,null,null,null,null,null,null,null,null,null,null,null,null,null,null,null,null,null,null,null,null,null,null,null,null,null,null,null,null,null,null,null,null,null,null,null,null,null,null,null,null,null,null,null,null,null,null,null,null,null,null,null,null,null,null,null,null,null,null,null,null,null,null,"Mean",{"$f":"AVERAGE(FI2:FI3)","v":32},16,16,5,5.5,1,1,2,1.5,null,"SD",{"$f":"STDEVA(FT2:FT3)","v":90.509667991878089},28.284271247461902,31.11269837220809,5.6568542494923806,5.6568542494923806,11.313708498984761,8.4852813742385695]
[null,null,null,null,null,null,null,null,null,null,null,null,null,null,null,null,null,null,null,null,null,null,null,null,null,null,null,null,null,null,null,null,null,null,null,null,null,null,null,null,null,null,null,null,null,null,null,null,null,null,null,null,null,null,null,null,null,null,null,null,null,null,null,null,null,null,null,null,null,null,null,null,null,null,null,null,null,null,null,null,null,null,null,null,null,null,null,null,null,null,null,null,null,null,null,null,null,null,null,null,null,null,null,null,null,null,null,null,null,null,null,null,null,null,null,null,null,null,null,null,null,null,null,null,null,null,null,null,null,null,null,null,null,null,null,null,null,null,null,null,null,null,null,null,null,null,null,null,null,null,null,null,null,null,null,null,null,null,null,null,null,null,null,"SD",{"$f":"STDEVA(FI2:FI3)","v":0},22.627416997969522,22.627416997969522,7.0710678118654755,7.7781745930520225,1.4142135623730951,1.4142135623730951,2.8284271247461903,2.1213203435596424]

{"sheet":"Graphs 32 Items","index":2,"n_rows":0,"n_cols":0,"rows_kept":0,"cut":false,"hidden":false,"merged":[]}

{"sheet":"20 Items","index":3,"n_rows":6,"n_cols":120,"rows_kept":6,"cut":false,"hidden":false,"merged":[]}
["Patient ID",null,"Item 1: I had more problems with my sleep","Item 1: How negatively it affected me (0-4)","Item 1: Probably caused by (1 = Treatment; 0 = Other)","Item 1: Negative impact from treatment","Item 1: Negative impact from other circumstances","Item 2: I felt like I was under more stress","Item 2: How negatively it affected me (0-4)","Item 2: Probably caused by (1 = Treatment; 0 = Other)","Item 2: Negative impact from  treatment","Item 2: Negative impact from other circumstances","Item 3: I experienced more anxiety","Item 3: How negatively it affected me (0-4)","Item 3: Probably caused by (1 = Treatment; 0 = Other)","Item 3: Negative impact from treatment","Item 3: Negative impact from other circumstances","Item 4: I felt more worried","Item 4: How negatively it affected me (0-4)","Item 4: Probably caused by (1 = Treatment; 0 = Other)","Item 4: Negative impact from treatment","Item 4: Negative impact from other circumstances","Item 5: I experienced more hopelessness","Item 5: How negatively it affected me (0-4)","Item 5: Probably caused by (1 = Treatment; 0 = Other)","Item 5: Negative impact from treatment","Item 5: Negative impact from other circumstances","Item 6: I experienced more unpleasant feelings","Item 6: How negatively it affected me (0-4)","Item 6: Probably caused by (1 = Treatment; 0 = Other)","Item 6: Negative impact from treatment","Item 6: Negative impact from other circumstances","Item 7: I felt that the issue I was looking for help with\ngot worse","Item 7: How negatively it affected me (0-4)","Item 7: Probably caused by (1 = Treatment; 0 = Other)","Item 7: Negative impact from treatment","Item 7: Negative impact from other circumstances","Item 8: Unpleasant memories resurfaced","Item 8: How negatively it affected me (0-4)","Item 8: Probably caused by (1 = Treatment; 0 = Other)","Item 8: Negative impact from treatment","Item 8: Negative impact from other circumstances","Item 9: I became afraid that other people would find\nout about my treatment","Item 9: How negatively it affected me (0-4)","Item 9: Probably caused by (1 = Treatment; 0 = Other)","Item 9: Negative impact from treatment","Item 9: Negative impact from other circumstances","Item 10: I got thoughts that it would be better if I did not\nexist anymore and that I should take my own\nlife","Item 10: How negatively it affected me (0-4)","Item 10: Probably caused by (1 = Treatment; 0 = Other)","Item 10: Negative impact from treatment","Item 10: Negative impact from other circumstances","Item 11: I started feeling ashamed in front of other people because I was having treatment","Item 11: How negatively it affected me (0-4)","Item 11: Probably caused by (1 = Treatment; 0 = Other)","Item 11: Negative impact from treatment","Item 11: Negative impact from other circumstances","Item 12: I stopped thinking that things could get better","Item 12: How negatively it affected me (0-4)","Item 12: Probably caused by (1 = Treatment; 0 = Other)","Item 12: Negative impact from treatment","Item 12: Negative impact from other circumstances","Item 13: I started thinking that the issue I was seeking\nhelp for could not be made any better","Item 13: How negatively it affected me (0-4)","Item 13: Probably caused by (1 = Treatment; 0 = Other)","Item 13: Negative impact from treatment","Item 13: Negative impact from other circumstances","Item 14: I think that I have developed a dependency on\nmy treatment","Item 14: How negatively it affected me (0-4)","Item 14: Probably caused by (1 = Treatment; 0 = Other)","Item 14: Negative impact from treatment","Item 14: Negative impact from other circumstances","Item 15: I did not always understand my treatment","Item 15: How negatively it affected me (0-4)","Item 15: Probably caused by (1 = Treatment; 0 = Other)","Item 15: Negative impact from treatment","Item 15: Negative impact from other circumstances","Item 16: I did not always understand my therapist","Item 16: How negatively it affected me (0-4)","Item 16: Probably caused by (1 = Treatment; 0 = Other)","Item 16: Negative impact from treatment","Item 16: Negative impact from other circumstances","Item 17: I did not have confidence in my treatment","Item 17: How negatively it affected me (0-4)","Item 17: Probably caused by (1 = Treatment; 0 = Other)","Item 17: Negative impact from treatment","Item 17: Negative impact from other circumstances","Item 18: I felt that the treatment did not produce any\nresults","Item 18: How negatively it affected me (0-4)","Item 18: Probably caused by (1 = Treatment; 0 = Other)","Item 18: Negative impact from treatment","Item 18: Negative impact from other circumstances","Item 19: I felt that my expectations for the therapist\nwere not fulfilled","Item 19: How negatively it affected me (0-4)","Item 19: Probably caused by (1 = Treatment; 0 = Other)","Item 19: Negative impact from treatment","Item 19: Negative impact from other circumstances","Item 20: I felt that the treatment was not motivating","Item 20: How negatively it affected me (0-4)","Item 20: Probably caused by (1 = Treatment; 0 = Other)","Item 20: Negative impact from treatment","Item 20: Negative impact from other circumstances",null,null,"Frequency negative effects","Frequency negative effects from treatment","Frequency negative effects from other circumstances","Frequency Factor 1 (Symptoms) from treatment","Frequency Factor 2 (Quality) from treatment","Frequency Factor 3 (Dependency) from treatment","Frequency Factor 4 (Stigma) from treatment","Frequency Factor 5 (Hopelessness) from treatment",null,null,"Negative impact from treatment","Negative impact Factor 1 (Symptoms) from treatment","Negative impact Factor 2 (Quality) from treatment","Negative impact Factor 3 (Dependency) from treatment","Negative impact Factor 4 (Stigma) from treatment","Negative impact Factor 5 (Hopelessness) from treatment"]
["Example_Patient_1",null,1,4,1,{"$f":"IF(AND(C2=1,E2=1),D2,)","v":4},{"$f":"IF(AND(C2=1,E2=0),D2,)","v":0},1,4,1,{"$f":"IF(AND(H2=1,J2=1),I2,)","v":4},{"$f":"IF(AND(H2=1,J2=0),I2,)","v":0},1,4,1,{"$f":"IF(AND(M2=1,O2=1),N2,)","v":4},{"$f":"IF(AND(M2=1,O2=0),N2,)","v":0},1,4,1,{"$f":"IF(AND(R2=1,T2=1),S2,)","v":4},{"$f":"IF(AND(R2=1,T2=0),S2,)","v":0},1,4,1,{"$f":"IF(AND(W2=1,Y2=1),X2,)","v":4},{"$f":"IF(AND(W2=1,Y2=0),X2,)","v":0},1,4,1,{"$f":"IF(AND(AB2=1,AD2=1),AC2,)","v":4},{"$f":"IF(AND(AB2=1,AD2=0),AC2,)","v":0},1,4,1,{"$f":"IF(AND(AG2=1,AI2=1),AH2,)","v":4},{"$f":"IF(AND(AG2=1,AI2=0),AH2,)","v":0},1,4,1,{"$f":"IF(AND(AL2=1,AN2=1),AM2,)","v":4},{"$f":"IF(AND(AL2=1,AN2=0),AM2,)","v":0},1,4,1,{"$f":"IF(AND(AQ2=1,AS2=1),AR2,)","v":4},{"$f":"IF(AND(AQ2=1,AS2=0),AR2,)","v":0},1,4,1,{"$f":"IF(AND(AV2=1,AX2=1),AW2,)","v":4},{"$f":"IF(AND(AV2=1,AX2=0),AW2,)","v":0},1,4,1,{"$f":"IF(AND(BA2=1,BC2=1),BB2,)","v":4},{"$f":"IF(AND(BA2=1,BC2=0),BB2,)","v":0},1,4,1,{"$f":"IF(AND(BF2=1,BH2=1),BG2,)","v":4},{"$f":"IF(AND(BF2=1,BH2=0),BG2,)","v":0},1,4,1,{"$f":"IF(AND(BK2=1,BM2=1),BL2,)","v":4},{"$f":"IF(AND(BK2=1,BM2=0),BL2,)","v":0},1,4,1,{"$f":"IF(AND(BP2=1,BR2=1),BQ2,)","v":4},{"$f":"IF(AND(BP2=1,BR2=0),BQ2,)","v":0},1,4,1,{"$f":"IF(AND(BU2=1,BW2=1),BV2,)","v":4},{"$f":"IF(AND(BU2=1,BW2=0),BV2,)","v":0},1,4,1,{"$f":"IF(AND(BZ2=1,CB2=1),CA2,)","v":4},{"$f":"IF(AND(BZ2=1,CB2=0),CA2,)","v":0},1,4,1,{"$f":"IF(AND(CE2=1,CG2=1),CF2,)","v":4},{"$f":"IF(AND(CE2=1,CG2=0),CF2,)","v":0},1,4,1,{"$f":"IF(AND(CJ2=1,CL2=1),CK2,)","v":4},{"$f":"IF(AND(CJ2=1,CL2=0),CK2,)","v":0},1,4,1,{"$f":"IF(AND(CO2=1,CQ2=1),CP2,)","v":4},{"$f":"IF(AND(CO2=1,CQ2=0),CP2,)","v":0},1,4,1,{"$f":"IF(AND(CT2=1,CV2=1),CU2,)","v":4},{"$f":"IF(AND(CT2=1,CV2=0),CU2,)","v":0},null,null,{"$f":"SUM(C2,H2,M2,R2,,W2,,,,,AB2,AG2,AL2,AQ2,AV2,BA2,BF2,BK2,,BP2,,BU2,BZ2,CE2,,CJ2,,CO2,,,,CT2)","v":20},{"$f":"SUM(E2,J2,O2,T2,,Y2,,,,,AD2,AI2,AN2,AS2,AX2,BC2,BH2,BM2,,BR2,,BW2,CB2,CG2,,CL2,,CQ2,,,,CV2)","v":20},{"$f":"DA2-DB2","v":0},{"$f":"SUM(E2,J2,O2,T2,,,AD2,AI2,AN2,AX2)","v":8},{"$f":"SUM(BW2,CB2,CG2,,CL2,,CQ2,,,,CV2)","v":6},{"$f":"SUM(BR2,)","v":1},{"$f":"SUM(AS2,BC2)","v":2},{"$f":"SUM(Y2,BH2,BM2,)","v":3},null,null,{"$f":"SUM(F2,K2,P2,U2,,Z2,,,,,AE2,AJ2,AO2,AT2,AY2,BD2,BI2,BN2,,BS2,,BX2,CC2,CH2,,CM2,,CR2,,,,CW2)","v":80},{"$f":"SUM(F2,K2,P2,U2,,,AE2,AJ2,AO2,AY2)","v":32},{"$f":"SUM(BX2,CC2,CH2,,CM2,,CR2,,,,CW2)","v":24},{"$f":"SUM(BS2,)","v":4},{"$f":"SUM(AT2,BD2)","v":8},{"$f":"SUM(Z2,BI2,BN2,)","v":12}]
["Example_Patient_2",null,1,3,0,{"$f":"IF(AND(C3=1,E3=1),D3,)","v":0},{"$f":"IF(AND(C3=1,E3=0),D3,)","v":3},1,3,0,{"$f":"IF(AND(H3=1,J3=1),I3,)","v":0},{"$f":"IF(AND(H3=1,J3=0),I3,)","v":3},1,3,0,{"$f":"IF(AND(M3=1,O3=1),N3,)","v":0},{"$f":"IF(AND(M3=1,O3=0),N3,)","v":3},1,3,0,{"$f":"IF(AND(R3=1,T3=1),S3,)","v":0},{"$f":"IF(AND(R3=1,T3=0),S3,)","v":3},1,3,0,{"$f":"IF(AND(W3=1,Y3=1),X3,)","v":0},{"$f":"IF(AND(W3=1,Y3=0),X3,)","v":3},1,3,0,{"$f":"IF(AND(AB3=1,AD3=1),AC3,)","v":0},{"$f":"IF(AND(AB3=1,AD3=0),AC3,)","v":3},1,3,0,{"$f":"IF(AND(AG3=1,AI3=1),AH3,)","v":0},{"$f":"IF(AND(AG3=1,AI3=0),AH3,)","v":3},1,3,0,{"$f":"IF(AND(AL3=1,AN3=1),AM3,)","v":0},{"$f":"IF(AND(AL3=1,AN3=0),AM3,)","v":3},1,3,0,{"$f":"IF(AND(AQ3=1,AS3=1),AR3,)","v":0},{"$f":"IF(AND(AQ3=1,AS3=0),AR3,)","v":3},1,3,0,{"$f":"IF(AND(AV3=1,AX3=1),AW3,)","v":0},{"$f":"IF(AND(AV3=1,AX3=0),AW3,)","v":3},1,3,0,{"$f":"IF(AND(BA3=1,BC3=1),BB3,)","v":0},{"$f":"IF(AND(BA3=1,BC3=0),BB3,)","v":3},1,3,0,{"$f":"IF(AND(BF3=1,BH3=1),BG3,)","v":0},{"$f":"IF(AND(BF3=1,BH3=0),BG3,)","v":3},1,3,0,{"$f":"IF(AND(BK3=1,BM3=1),BL3,)","v":0},{"$f":"IF(AND(BK3=1,BM3=0),BL3,)","v":3},1,3,0,{"$f":"IF(AND(BP3=1,BR3=1),BQ3,)","v":0},{"$f":"IF(AND(BP3=1,BR3=0),BQ3,)","v":3},1,3,0,{"$f":"IF(AND(BU3=1,BW3=1),BV3,)","v":0},{"$f":"IF(AND(BU3=1,BW3=0),BV3,)","v":3},1,3,0,{"$f":"IF(AND(BZ3=1,CB3=1),CA3,)","v":0},{"$f":"IF(AND(BZ3=1,CB3=0),CA3,)","v":3},1,3,0,{"$f":"IF(AND(CE3=1,CG3=1),CF3,)","v":0},{"$f":"IF(AND(CE3=1,CG3=0),CF3,)","v":3},1,3,0,{"$f":"IF(AND(CJ3=1,CL3=1),CK3,)","v":0},{"$f":"IF(AND(CJ3=1,CL3=0),CK3,)","v":3},1,3,0,{"$f":"IF(AND(CO3=1,CQ3=1),CP3,)","v":0},{"$f":"IF(AND(CO3=1,CQ3=0),CP3,)","v":3},1,3,0,{"$f":"IF(AND(CT3=1,CV3=1),CU3,)","v":0},{"$f":"IF(AND(CT3=1,CV3=0),CU3,)","v":3},null,null,{"$f":"SUM(C3,H3,M3,R3,,W3,,,,,AB3,AG3,AL3,AQ3,AV3,BA3,BF3,BK3,,BP3,,BU3,BZ3,CE3,,CJ3,,CO3,,,,CT3)","v":20},{"$f":"SUM(E3,J3,O3,T3,,Y3,,,,,AD3,AI3,AN3,AS3,AX3,BC3,BH3,BM3,,BR3,,BW3,CB3,CG3,,CL3,,CQ3,,,,CV3)","v":0},{"$f":"DA3-DB3","v":20},{"$f":"SUM(E3,J3,O3,T3,,,AD3,AI3,AN3,AX3)","v":0},{"$f":"SUM(BW3,CB3,CG3,,CL3,,CQ3,,,,CV3)","v":0},{"$f":"SUM(BR3,)","v":0},{"$f":"SUM(AS3,BC3)","v":0},{"$f":"SUM(Y3,BH3,BM3,)","v":0},null,null,{"$f":"SUM(F3,K3,P3,U3,,Z3,,,,,AE3,AJ3,AO3,AT3,AY3,BD3,BI3,BN3,,BS3,,BX3,CC3,CH3,,CM3,,CR3,,,,CW3)","v":0},{"$f":"SUM(F3,K3,P3,U3,,,AE3,AJ3,AO3,AY3)","v":0},{"$f":"SUM(BX3,CC3,CH3,,CM3,,CR3,,,,CW3)","v":0},{"$f":"SUM(BS3,)","v":0},{"$f":"SUM(AT3,BD3)","v":0},{"$f":"SUM(Z3,BI3,BN3,)","v":0}]
[null,null,{"$f":"SUM(C2:C3)","v":2},{"$f":"AVERAGE(D2:D3)","v":3.5},{"$f":"SUM(E2:E3)","v":1},{"$f":"AVERAGE(F2:F3)","v":2},{"$f":"AVERAGE(G2:G3)","v":1.5},{"$f":"SUM(H2:H3)","v":2},{"$f":"AVERAGE(I2:I3)","v":3.5},{"$f":"SUM(J2:J3)","v":1},{"$f":"AVERAGE(K2:K3)","v":2},{"$f":"AVERAGE(L2:L3)","v":1.5},{"$f":"SUM(M2:M3)","v":2},{"$f":"AVERAGE(N2:N3)","v":3.5},{"$f":"SUM(O2:O3)","v":1},{"$f":"AVERAGE(P2:P3)","v":2},{"$f":"AVERAGE(Q2:Q3)","v":1.5},{"$f":"SUM(R2:R3)","v":2},{"$f":"AVERAGE(S2:S3)","v":3.5},{"$f":"SUM(T2:T3)","v":1},{"$f":"AVERAGE(U2:U3)","v":2},{"$f":"AVERAGE(V2:V3)","v":1.5},{"$f":"SUM(W2:W3)","v":2},{"$f":"AVERAGE(X2:X3)","v":3.5},{"$f":"SUM(Y2:Y3)","v":1},{"$f":"AVERAGE(Z2:Z3)","v":2},{"$f":"AVERAGE(AA2:AA3)","v":1.5},{"$f":"SUM(AB2:AB3)","v":2},{"$f":"AVERAGE(AC2:AC3)","v":3.5},{"$f":"SUM(AD2:AD3)","v":1},{"$f":"AVERAGE(AE2:AE3)","v":2},{"$f":"AVERAGE(AF2:AF3)","v":1.5},{"$f":"SUM(AG2:AG3)","v":2},{"$f":"AVERAGE(AH2:AH3)","v":3.5},{"$f":"SUM(AI2:AI3)","v":1},{"$f":"AVERAGE(AJ2:AJ3)","v":2},{"$f":"AVERAGE(AK2:AK3)","v":1.5},{"$f":"SUM(AL2:AL3)","v":2},{"$f":"AVERAGE(AM2:AM3)","v":3.5},{"$f":"SUM(AN2:AN3)","v":1},{"$f":"AVERAGE(AO2:AO3)","v":2},{"$f":"AVERAGE(AP2:AP3)","v":1.5},{"$f":"SUM(AQ2:AQ3)","v":2},{"$f":"AVERAGE(AR2:AR3)","v":3.5},{"$f":"SUM(AS2:AS3)","v":1},{"$f":"AVERAGE(AT2:AT3)","v":2},{"$f":"AVERAGE(AU2:AU3)","v":1.5},{"$f":"SUM(AV2:AV3)","v":2},{"$f":"AVERAGE(AW2:AW3)","v":3.5},{"$f":"SUM(AX2:AX3)","v":1},{"$f":"AVERAGE(AY2:AY3)","v":2},{"$f":"AVERAGE(AZ2:AZ3)","v":1.5},{"$f":"SUM(BA2:BA3)","v":2},{"$f":"AVERAGE(BB2:BB3)","v":3.5},{"$f":"SUM(BC2:BC3)","v":1},{"$f":"AVERAGE(BD2:BD3)","v":2},{"$f":"AVERAGE(BE2:BE3)","v":1.5},{"$f":"SUM(BF2:BF3)","v":2},{"$f":"AVERAGE(BG2:BG3)","v":3.5},{"$f":"SUM(BH2:BH3)","v":1},{"$f":"AVERAGE(BI2:BI3)","v":2},{"$f":"AVERAGE(BJ2:BJ3)","v":1.5},{"$f":"SUM(BK2:BK3)","v":2},{"$f":"AVERAGE(BL2:BL3)","v":3.5},{"$f":"SUM(BM2:BM3)","v":1},{"$f":"AVERAGE(BN2:BN3)","v":2},{"$f":"AVERAGE(BO2:BO3)","v":1.5},{"$f":"SUM(BP2:BP3)","v":2},{"$f":"AVERAGE(BQ2:BQ3)","v":3.5},{"$f":"SUM(BR2:BR3)","v":1},{"$f":"AVERAGE(BS2:BS3)","v":2},{"$f":"AVERAGE(BT2:BT3)","v":1.5},{"$f":"SUM(BU2:BU3)","v":2},{"$f":"AVERAGE(BV2:BV3)","v":3.5},{"$f":"SUM(BW2:BW3)","v":1},{"$f":"AVERAGE(BX2:BX3)","v":2},{"$f":"AVERAGE(BY2:BY3)","v":1.5},{"$f":"SUM(BZ2:BZ3)","v":2},{"$f":"AVERAGE(CA2:CA3)","v":3.5},{"$f":"SUM(CB2:CB3)","v":1},{"$f":"AVERAGE(CC2:CC3)","v":2},{"$f":"AVERAGE(CD2:CD3)","v":1.5},{"$f":"SUM(CE2:CE3)","v":2},{"$f":"AVERAGE(CF2:CF3)","v":3.5},{"$f":"SUM(CG2:CG3)","v":1},{"$f":"AVERAGE(CH2:CH3)","v":2},{"$f":"AVERAGE(CI2:CI3)","v":1.5},{"$f":"SUM(CJ2:CJ3)","v":2},{"$f":"AVERAGE(CK2:CK3)","v":3.5},{"$f":"SUM(CL2:CL3)","v":1},{"$f":"AVERAGE(CM2:CM3)","v":2},{"$f":"AVERAGE(CN2:CN3)","v":1.5},{"$f":"SUM(CO2:CO3)","v":2},{"$f":"AVERAGE(CP2:CP3)","v":3.5},{"$f":"SUM(CQ2:CQ3)","v":1},{"$f":"AVERAGE(CR2:CR3)","v":2},{"$f":"AVERAGE(CS2:CS3)","v":1.5},{"$f":"SUM(CT2:CT3)","v":2},{"$f":"AVERAGE(CU2:CU3)","v":3.5},{"$f":"SUM(CV2:CV3)","v":1},{"$f":"AVERAGE(CW2:CW3)","v":2},{"$f":"AVERAGE(CX2:CX3)","v":1.5},null,"Sum",{"$f":"SUM(DA2:DA3)","v":40},20,20,8,6,1,2,3,null,"Mean",{"$f":"AVERAGE(DK2:DK3)","v":40},16,12,2,4,6]
[null,null,null,null,null,null,null,null,null,null,null,null,null,null,null,null,null,null,null,null,null,null,null,null,null,null,null,null,null,null,null,null,null,null,null,null,null,null,null,null,null,null,null,null,null,null,null,null,null,null,null,null,null,null,null,null,null,null,null,null,null,null,null,null,null,null,null,null,null,null,null,null,null,null,null,null,null,null,null,null,null,null,null,null,null,null,null,null,null,null,null,null,null,null,null,null,null,null,null,null,null,null,null,"Mean",{"$f":"AVERAGE(DA2:DA3)","v":20},10,10,4,3,0.5,1,1.5,null,"SD",{"$f":"STDEVA(DK2:DK3)","v":56.568542494923804},22.627416997969522,16.970562748477139,2.8284271247461903,5.6568542494923806,8.4852813742385695]
[null,null,null,null,null,null,null,null,null,null,null,null,null,null,null,null,null,null,null,null,null,null,null,null,null,null,null,null,null,null,null,null,null,null,null,null,null,null,null,null,null,null,null,null,null,null,null,null,null,null,null,null,null,null,null,null,null,null,null,null,null,null,null,null,null,null,null,null,null,null,null,null,null,null,null,null,null,null,null,null,null,null,null,null,null,null,null,null,null,null,null,null,null,null,null,null,null,null,null,null,null,null,null,"SD",{"$f":"STDEVA(DA2:DA3)","v":0},14.142135623730951,14.142135623730951,5.6568542494923806,4.2426406871192848,0.70710678118654757,1.4142135623730951,2.1213203435596424]

{"sheet":"Graphs 20 Items","index":4,"n_rows":0,"n_cols":0,"rows_kept":0,"cut":false,"hidden":false,"merged":[]}